[Event "Titled Tuesday Blitz May 4 2021"]
[White "Elgersma, Onno"]
[Black "Rzayev, Bahruz"]
[WhiteFideId "1053531"]
[BlackFideId "13403036"]
[WhiteElo "2486"]
[BlackElo "2331"]
[Result "1-0"]
[Round "04"]
[TimeControl "180+1"]
[Date "2021.05.04"]
[WhiteClock "0:00:16"]
[BlackClock "0:00:06"]

1. Nf3 {[%clk 0:03:00]}  Nc6 {[%clk 0:02:59]} 2. e4 {[%clk 0:02:59]}  e5 {[%clk 0:02:59]} 3. Bb5 {[%clk 0:02:59]}  a6 {[%clk 0:03:00]} 4. Ba4 {[%clk 0:02:59]}  Nf6 {[%clk 0:02:58]} 5. d3 {[%clk 0:02:58]}  b5 {[%clk 0:02:57]} 6. Bb3 {[%clk 0:02:58]}  Bc5 {[%clk 0:02:57]} 7. Nc3 {[%clk 0:02:54]}  d6 {[%clk 0:02:49]} 8. a3 {[%clk 0:02:54]}  Bg4 {[%clk 0:02:45]} 9. Be3 {[%clk 0:02:46]}  Nd4 {[%clk 0:02:42]} 10. Bxd4 {[%clk 0:02:45]}  Bxd4 {[%clk 0:02:42]} 11. h3 {[%clk 0:02:39]}  Bxf3 {[%clk 0:02:38]} 12. Qxf3 {[%clk 0:02:40]}  O-O {[%clk 0:02:36]} 13. O-O {[%clk 0:02:40]}  c6 {[%clk 0:02:25]} 14. Rab1 {[%clk 0:02:33]}  g6 {[%clk 0:02:19]} 15. Ne2 {[%clk 0:02:33]}  Bb6 {[%clk 0:02:14]} 16. a4 {[%clk 0:02:24]}  Kg7 {[%clk 0:02:14]} 17. Ra1 {[%clk 0:02:22]}  Nh5 {[%clk 0:02:09]} 18. g4 {[%clk 0:02:19]}  Nf6 {[%clk 0:01:56]} 19. Qg3 {[%clk 0:02:16]}  Qe7 {[%clk 0:01:46]} 20. Kg2 {[%clk 0:02:12]}  d5 {[%clk 0:01:45]} 21. axb5 {[%clk 0:01:55]}  axb5 {[%clk 0:01:45]} 22. Rxa8 {[%clk 0:01:52]}  Rxa8 {[%clk 0:01:46]} 23. f4 {[%clk 0:01:36]}  exf4 {[%clk 0:01:36]} 24. Nxf4 {[%clk 0:01:16]}  g5 {[%clk 0:01:18]} 25. Nh5+ {[%clk 0:01:10]}  Nxh5 {[%clk 0:01:17]} 26. gxh5 {[%clk 0:01:11]}  Rf8 {[%clk 0:01:08]} 27. Qf3 {[%clk 0:00:55]}  dxe4 {[%clk 0:01:03]} 28. dxe4 {[%clk 0:00:54]}  f6 {[%clk 0:01:00]} 29. Qf5 {[%clk 0:00:35]}  Re8 {[%clk 0:00:47]} 30. h6+ {[%clk 0:00:32]}  Kxh6 {[%clk 0:00:44]} 31. Qxf6+ {[%clk 0:00:32]}  Qxf6 {[%clk 0:00:45]} 32. Rxf6+ {[%clk 0:00:33]}  Kg7 {[%clk 0:00:45]} 33. Rxc6 {[%clk 0:00:33]}  Bd4 {[%clk 0:00:42]} 34. c3 {[%clk 0:00:31]}  Be3 {[%clk 0:00:42]} 35. Bd5 {[%clk 0:00:30]}  Rf8 {[%clk 0:00:38]} 36. Rc7+ {[%clk 0:00:30]}  Kg6 {[%clk 0:00:37]} 37. e5 {[%clk 0:00:20]}  Rf2+ {[%clk 0:00:36]} 38. Kg3 {[%clk 0:00:20]}  h6 {[%clk 0:00:15]} 39. Be4+ {[%clk 0:00:19]}  Kh5 {[%clk 0:00:15]} 40. Rg7 {[%clk 0:00:17]}  Rf6 {[%clk 0:00:06]} 41. exf6 {[%clk 0:00:16]} 1-0


[Site "https://www.chess.com"]

[Event "Titled Tuesday Blitz May 4 2021"]
[White "Erden, Kadir"]
[Black "Tang, Andrew"]
[WhiteFideId "6305776"]
[BlackFideId "2059630"]
[WhiteElo "2563"]
[BlackElo "2907"]
[Result "0-1"]
[Round "04"]
[TimeControl "180+1"]
[Date "2021.05.04"]
[WhiteClock "0:00:02"]
[BlackClock "0:01:03"]

1. d4 {[%clk 0:03:00]}  d5 {[%clk 0:02:54]} 2. c4 {[%clk 0:02:57]}  e6 {[%clk 0:02:53]} 3. Nf3 {[%clk 0:02:56]}  Nf6 {[%clk 0:02:54]} 4. Nc3 {[%clk 0:02:55]}  Be7 {[%clk 0:02:52]} 5. Bg5 {[%clk 0:02:51]}  h6 {[%clk 0:02:53]} 6. Bh4 {[%clk 0:02:48]}  O-O {[%clk 0:02:52]} 7. e3 {[%clk 0:02:46]}  b6 {[%clk 0:02:53]} 8. Rc1 {[%clk 0:02:42]}  Bb7 {[%clk 0:02:51]} 9. Bxf6 {[%clk 0:02:39]}  Bxf6 {[%clk 0:02:52]} 10. cxd5 {[%clk 0:02:40]}  exd5 {[%clk 0:02:53]} 11. Bd3 {[%clk 0:02:39]}  c5 {[%clk 0:02:51]} 12. O-O {[%clk 0:02:40]}  Nd7 {[%clk 0:02:39]} 13. Qa4 {[%clk 0:02:13]}  a6 {[%clk 0:02:18]} 14. Bf5 {[%clk 0:02:07]}  b5 {[%clk 0:02:16]} 15. Qd1 {[%clk 0:02:06]}  c4 {[%clk 0:02:13]} 16. a4 {[%clk 0:01:59]}  b4 {[%clk 0:02:07]} 17. Ne2 {[%clk 0:01:59]}  a5 {[%clk 0:02:02]} 18. b3 {[%clk 0:01:55]}  Nb6 {[%clk 0:02:00]} 19. Nf4 {[%clk 0:01:43]}  Re8 {[%clk 0:01:55]} 20. Re1 {[%clk 0:01:37]}  Qd6 {[%clk 0:01:50]} 21. Bb1 {[%clk 0:01:29]}  g6 {[%clk 0:01:37]} 22. h4 {[%clk 0:01:25]}  Bg7 {[%clk 0:01:35]} 23. h5 {[%clk 0:01:21]}  g5 {[%clk 0:01:35]} 24. Ne2 {[%clk 0:01:21]}  cxb3 {[%clk 0:01:15]} 25. Qxb3 {[%clk 0:01:12]}  Bc6 {[%clk 0:01:16]} 26. Ng3 {[%clk 0:01:07]}  Bxa4 {[%clk 0:01:14]} 27. Qd3 {[%clk 0:01:06]}  Bd7 {[%clk 0:01:14]} 28. Rc5 {[%clk 0:00:54]}  a4 {[%clk 0:01:12]} 29. Rec1 {[%clk 0:00:50]}  b3 {[%clk 0:01:10]} 30. Qh7+ {[%clk 0:00:42]}  Kf8 {[%clk 0:01:10]} 31. Nf5 {[%clk 0:00:22]}  Bxf5 {[%clk 0:01:08]} 32. Bxf5 {[%clk 0:00:22]}  b2 {[%clk 0:01:07]} 33. Rd1 {[%clk 0:00:20]}  a3 {[%clk 0:01:07]} 34. Rb5 {[%clk 0:00:02]}  Nc4 {[%clk 0:01:03]} 0-1


[Site "https://www.chess.com"]

[Event "Titled Tuesday Blitz May 4 2021"]
[White "Erdogdu, Mert"]
[Black "Shlyakhetsky, Vladimir"]
[WhiteFideId "6301495"]
[BlackFideId "2805928"]
[WhiteElo "2485"]
[BlackElo "2168"]
[Result "0-1"]
[Round "04"]
[TimeControl "180+1"]
[Date "2021.05.04"]
[WhiteClock "0:00:13"]
[BlackClock "0:00:09"]

1. e4 {[%clk 0:03:00]}  c5 {[%clk 0:02:57]} 2. Nf3 {[%clk 0:03:00]}  a6 {[%clk 0:02:57]} 3. c3 {[%clk 0:02:59]}  d6 {[%clk 0:02:57]} 4. d4 {[%clk 0:02:59]}  cxd4 {[%clk 0:02:58]} 5. cxd4 {[%clk 0:03:00]}  Nf6 {[%clk 0:02:58]} 6. Nc3 {[%clk 0:03:00]}  g6 {[%clk 0:02:59]} 7. h3 {[%clk 0:02:58]}  Bg7 {[%clk 0:02:59]} 8. Bd3 {[%clk 0:02:59]}  O-O {[%clk 0:03:00]} 9. O-O {[%clk 0:02:59]}  b5 {[%clk 0:03:00]} 10. a3 {[%clk 0:02:59]}  Bb7 {[%clk 0:03:00]} 11. Bg5 {[%clk 0:02:57]}  Nc6 {[%clk 0:03:00]} 12. Qd2 {[%clk 0:02:56]}  Na5 {[%clk 0:03:00]} 13. Rad1 {[%clk 0:02:55]}  Re8 {[%clk 0:03:00]} 14. Bh6 {[%clk 0:02:51]}  Bh8 {[%clk 0:02:59]} 15. Rfe1 {[%clk 0:02:51]}  Rc8 {[%clk 0:02:56]} 16. Qf4 {[%clk 0:02:40]}  Nc4 {[%clk 0:02:54]} 17. Bxc4 {[%clk 0:02:30]}  Rxc4 {[%clk 0:02:55]} 18. Qh4 {[%clk 0:02:22]}  b4 {[%clk 0:02:39]} 19. axb4 {[%clk 0:02:20]}  Rxb4 {[%clk 0:02:39]} 20. Ng5 {[%clk 0:02:17]}  e6 {[%clk 0:02:20]} 21. e5 {[%clk 0:02:14]}  dxe5 {[%clk 0:02:12]} 22. Rxe5 {[%clk 0:02:04]}  Nh5 {[%clk 0:01:49]} 23. g4 {[%clk 0:01:21]}  Rxd4 {[%clk 0:01:35]} 24. Ree1 {[%clk 0:01:18]}  Nf4 {[%clk 0:01:05]} 25. Rxd4 {[%clk 0:01:07]}  Bxd4 {[%clk 0:00:53]} 26. Nce4 {[%clk 0:00:59]}  Nd3 {[%clk 0:00:38]} 27. Bf8 {[%clk 0:00:46]}  Kxf8 {[%clk 0:00:28]} 28. Qxh7 {[%clk 0:00:40]}  Bg7 {[%clk 0:00:26]} 29. Re3 {[%clk 0:00:31]}  Ne5 {[%clk 0:00:18]} 30. h4 {[%clk 0:00:19]}  Qd1+ {[%clk 0:00:14]} 31. Kg2 {[%clk 0:00:17]}  Qxg4+ {[%clk 0:00:14]} 32. Kh2 {[%clk 0:00:17]}  Bxe4 {[%clk 0:00:13]} 33. Rxe4 {[%clk 0:00:17]}  Nf3+ {[%clk 0:00:12]} 34. Nxf3 {[%clk 0:00:18]}  Qxe4 {[%clk 0:00:11]} 35. Ng5 {[%clk 0:00:16]}  Qf4+ {[%clk 0:00:10]} 36. Kg2 {[%clk 0:00:17]}  Rc8 {[%clk 0:00:10]} 37. Nf3 {[%clk 0:00:13]}  Rc2 {[%clk 0:00:09]} 38. h5 {[%clk 0:00:13]}  Qg4+ {[%clk 0:00:09]} 39. Kf1 {[%clk 0:00:13]}  Qxf3 {[%clk 0:00:09]} 0-1


[Site "https://www.chess.com"]

[Event "Titled Tuesday Blitz May 4 2021"]
[White "Escalante Ramirez, Brian Sebasti"]
[Black "Demidov, Mikhail"]
[WhiteFideId "3819566"]
[BlackFideId "4197143"]
[WhiteElo "2630"]
[BlackElo "2845"]
[Result "1-0"]
[Round "04"]
[TimeControl "180+1"]
[Date "2021.05.04"]
[WhiteClock "0:00:05"]
[BlackClock "0:00:24"]

1. e4 {[%clk 0:03:00]}  c6 {[%clk 0:02:58]} 2. d4 {[%clk 0:03:00]}  d5 {[%clk 0:02:58]} 3. f3 {[%clk 0:03:00]}  e6 {[%clk 0:02:57]} 4. Nc3 {[%clk 0:02:59]}  Bb4 {[%clk 0:02:56]} 5. Ne2 {[%clk 0:02:59]}  b6 {[%clk 0:02:56]} 6. a3 {[%clk 0:02:59]}  Bxc3+ {[%clk 0:02:54]} 7. Nxc3 {[%clk 0:03:00]}  Ne7 {[%clk 0:02:52]} 8. h4 {[%clk 0:02:56]}  Ba6 {[%clk 0:02:38]} 9. Bxa6 {[%clk 0:02:55]}  Nxa6 {[%clk 0:02:39]} 10. Qd3 {[%clk 0:02:55]}  Nc7 {[%clk 0:02:35]} 11. Bf4 {[%clk 0:02:51]}  Qd7 {[%clk 0:02:29]} 12. O-O-O {[%clk 0:02:50]}  O-O-O {[%clk 0:02:28]} 13. h5 {[%clk 0:02:49]}  h6 {[%clk 0:02:28]} 14. g4 {[%clk 0:02:47]}  Kb7 {[%clk 0:02:16]} 15. Kb1 {[%clk 0:02:42]}  Nb5 {[%clk 0:02:15]} 16. Nxb5 {[%clk 0:02:38]}  cxb5 {[%clk 0:02:16]} 17. Be5 {[%clk 0:02:28]}  Rhg8 {[%clk 0:02:11]} 18. Rhe1 {[%clk 0:02:00]}  Rc8 {[%clk 0:02:08]} 19. Bg3 {[%clk 0:02:00]}  Nc6 {[%clk 0:02:02]} 20. Qxb5 {[%clk 0:01:54]}  Rgd8 {[%clk 0:02:01]} 21. exd5 {[%clk 0:01:52]}  Qxd5 {[%clk 0:01:49]} 22. Qxd5 {[%clk 0:01:51]}  Rxd5 {[%clk 0:01:49]} 23. c3 {[%clk 0:01:50]}  b5 {[%clk 0:01:46]} 24. Be5 {[%clk 0:01:45]}  Rg8 {[%clk 0:01:41]} 25. Kc2 {[%clk 0:01:33]}  a5 {[%clk 0:01:39]} 26. b3 {[%clk 0:01:24]}  g6 {[%clk 0:01:32]} 27. hxg6 {[%clk 0:01:23]}  Rxg6 {[%clk 0:01:33]} 28. Rh1 {[%clk 0:01:06]}  f5 {[%clk 0:01:05]} 29. c4 {[%clk 0:00:38]}  bxc4 {[%clk 0:00:56]} 30. bxc4 {[%clk 0:00:39]}  Rd7 {[%clk 0:00:57]} 31. gxf5 {[%clk 0:00:39]}  exf5 {[%clk 0:00:55]} 32. f4 {[%clk 0:00:34]}  a4 {[%clk 0:00:51]} 33. d5 {[%clk 0:00:30]}  Na5 {[%clk 0:00:51]} 34. c5 {[%clk 0:00:27]}  Ka6 {[%clk 0:00:50]} 35. c6 {[%clk 0:00:25]}  Nxc6 {[%clk 0:00:50]} 36. dxc6 {[%clk 0:00:24]}  Rxc6+ {[%clk 0:00:51]} 37. Kb2 {[%clk 0:00:18]}  Rb7+ {[%clk 0:00:50]} 38. Ka1 {[%clk 0:00:18]}  Rb3 {[%clk 0:00:50]} 39. Rd6 {[%clk 0:00:16]}  Rxa3+ {[%clk 0:00:45]} 40. Kb2 {[%clk 0:00:16]}  Rb3+ {[%clk 0:00:46]} 41. Ka2 {[%clk 0:00:15]}  Rxd6 {[%clk 0:00:42]} 42. Bxd6 {[%clk 0:00:16]}  Rb6 {[%clk 0:00:41]} 43. Rxh6 {[%clk 0:00:16]}  Kb5 {[%clk 0:00:40]} 44. Bf8 {[%clk 0:00:15]}  Rb7 {[%clk 0:00:37]} 45. Rf6 {[%clk 0:00:14]}  Kc4 {[%clk 0:00:33]} 46. Rxf5 {[%clk 0:00:14]}  Kd4 {[%clk 0:00:34]} 47. Bd6 {[%clk 0:00:09]}  Rd7 {[%clk 0:00:30]} 48. Be5+ {[%clk 0:00:09]}  Kc4 {[%clk 0:00:31]} 49. Ka3 {[%clk 0:00:08]}  Kb5 {[%clk 0:00:29]} 50. Bb2+ {[%clk 0:00:06]}  Kc4 {[%clk 0:00:29]} 51. Kxa4 {[%clk 0:00:05]}  Rb7 {[%clk 0:00:26]} 52. Ba3 {[%clk 0:00:04]}  Rb8 {[%clk 0:00:23]} 53. Rc5+ {[%clk 0:00:04]}  Kd4 {[%clk 0:00:23]} 54. Rc1 {[%clk 0:00:04]}  Ke4 {[%clk 0:00:22]} 55. Bd6 {[%clk 0:00:04]}  Rb6 {[%clk 0:00:21]} 56. Be5 {[%clk 0:00:04]}  Kf5 {[%clk 0:00:21]} 57. Rc5 {[%clk 0:00:03]}  Rb7 {[%clk 0:00:21]} 58. Rb5 {[%clk 0:00:04]}  Rd7 {[%clk 0:00:21]} 59. Kb4 {[%clk 0:00:04]}  Rd1 {[%clk 0:00:21]} 60. Rc5 {[%clk 0:00:04]}  Ke4 {[%clk 0:00:22]} 61. Kb5 {[%clk 0:00:05]}  Rb1+ {[%clk 0:00:23]} 62. Kc6 {[%clk 0:00:05]}  Rc1 {[%clk 0:00:24]} 63. Rxc1 {[%clk 0:00:05]} 1-0


[Site "https://www.chess.com"]

[Event "Titled Tuesday Blitz May 4 2021"]
[White "Flores Quillas, Diego Saul Rodri"]
[Black "Matsuura, Frederico"]
[WhiteFideId "3822508"]
[BlackFideId "2107848"]
[WhiteElo "2071"]
[BlackElo "2302"]
[Result "1-0"]
[Round "04"]
[TimeControl "180+1"]
[Date "2021.05.04"]
[WhiteClock "0:00:44"]
[BlackClock "0:00:39"]

1. e4 {[%clk 0:03:00]}  e6 {[%clk 0:02:58]} 2. d4 {[%clk 0:02:59]}  d5 {[%clk 0:02:59]} 3. Nc3 {[%clk 0:02:58]}  Bb4 {[%clk 0:02:51]} 4. e5 {[%clk 0:02:54]}  Qd7 {[%clk 0:02:51]} 5. Qg4 {[%clk 0:02:50]}  f5 {[%clk 0:02:50]} 6. Qg3 {[%clk 0:02:50]}  b6 {[%clk 0:02:49]} 7. h4 {[%clk 0:02:27]}  Ba6 {[%clk 0:02:49]} 8. Bxa6 {[%clk 0:02:23]}  Nxa6 {[%clk 0:02:48]} 9. Bd2 {[%clk 0:02:22]}  O-O-O {[%clk 0:02:45]} 10. Nge2 {[%clk 0:02:17]}  Ne7 {[%clk 0:02:10]} 11. Qxg7 {[%clk 0:01:28]}  Rhg8 {[%clk 0:01:18]} 12. Qxh7 {[%clk 0:01:11]}  Rxg2 {[%clk 0:01:14]} 13. Nf4 {[%clk 0:01:04]}  Rg4 {[%clk 0:01:13]} 14. f3 {[%clk 0:01:00]}  Bxc3 {[%clk 0:01:08]} 15. bxc3 {[%clk 0:00:59]}  Rg3 {[%clk 0:01:04]} 16. Kf2 {[%clk 0:00:58]}  Rdg8 {[%clk 0:01:02]} 17. Rag1 {[%clk 0:00:55]}  Rxg1 {[%clk 0:00:58]} 18. Rxg1 {[%clk 0:00:56]}  Rxg1 {[%clk 0:00:54]} 19. Kxg1 {[%clk 0:00:57]}  Qb5 {[%clk 0:00:43]} 20. Qxe7 {[%clk 0:00:52]}  Qb1+ {[%clk 0:00:43]} 21. Kf2 {[%clk 0:00:47]}  Qxc2 {[%clk 0:00:41]} 22. Qxe6+ {[%clk 0:00:46]}  Kb8 {[%clk 0:00:39]} 23. Qg8+ {[%clk 0:00:44]} 1-0


[Site "https://www.chess.com"]

[Event "Titled Tuesday Blitz May 4 2021"]
[White "Gaboyan, Susanna"]
[Black "Steil-Antoni, Fiona"]
[WhiteFideId "13303627"]
[BlackFideId "4001249"]
[WhiteElo "2135"]
[BlackElo "2059"]
[Result "1-0"]
[Round "04"]
[TimeControl "180+1"]
[Date "2021.05.04"]
[WhiteClock "0:00:30"]
[BlackClock "0:00:02"]

1. Nf3 {[%clk 0:03:00]}  d6 {[%clk 0:02:54]} 2. g3 {[%clk 0:03:01]}  e5 {[%clk 0:02:52]} 3. Bg2 {[%clk 0:03:01]}  f6 {[%clk 0:02:52]} 4. d3 {[%clk 0:03:00]}  Be6 {[%clk 0:02:48]} 5. c4 {[%clk 0:02:43]}  Qd7 {[%clk 0:02:44]} 6. Nxe5 {[%clk 0:02:35]}  fxe5 {[%clk 0:02:30]} 7. Bxb7 {[%clk 0:02:33]}  c6 {[%clk 0:02:20]} 8. Bxa8 {[%clk 0:02:33]}  Be7 {[%clk 0:01:17]} 9. Qa4 {[%clk 0:02:28]}  Nf6 {[%clk 0:00:51]} 10. Be3 {[%clk 0:02:20]}  a6 {[%clk 0:00:51]} 11. Qb3 {[%clk 0:02:13]}  O-O {[%clk 0:00:42]} 12. Qb7 {[%clk 0:02:12]}  Qe8 {[%clk 0:00:38]} 13. Nc3 {[%clk 0:01:59]}  d5 {[%clk 0:00:20]} 14. cxd5 {[%clk 0:01:52]}  cxd5 {[%clk 0:00:21]} 15. Qb6 {[%clk 0:01:53]}  Bf7 {[%clk 0:00:15]} 16. Bg5 {[%clk 0:01:08]}  Nbd7 {[%clk 0:00:15]} 17. Qc7 {[%clk 0:01:08]}  Qxa8 {[%clk 0:00:14]} 18. Bxf6 {[%clk 0:01:09]}  Nxf6 {[%clk 0:00:14]} 19. Qxe7 {[%clk 0:01:09]}  d4 {[%clk 0:00:14]} 20. Ne4 {[%clk 0:01:08]}  Nxe4 {[%clk 0:00:15]} 21. dxe4 {[%clk 0:01:09]}  Qxe4 {[%clk 0:00:15]} 22. f3 {[%clk 0:01:03]}  Qe3 {[%clk 0:00:13]} 23. Qa3 {[%clk 0:01:03]}  Qh6 {[%clk 0:00:12]} 24. O-O {[%clk 0:00:59]}  Be6 {[%clk 0:00:08]} 25. Qd6 {[%clk 0:00:54]}  Rf6 {[%clk 0:00:03]} 26. Qxe5 {[%clk 0:00:50]}  Qd2 {[%clk 0:00:03]} 27. Rac1 {[%clk 0:00:49]}  Kf7 {[%clk 0:00:03]} 28. Rc7+ {[%clk 0:00:48]}  Kg6 {[%clk 0:00:03]} 29. h4 {[%clk 0:00:41]}  Bh3 {[%clk 0:00:02]} 30. Rfc1 {[%clk 0:00:30]} 1-0


[Site "https://www.chess.com"]

[Event "Titled Tuesday Blitz May 4 2021"]
[White "Gahan, M G"]
[Black "Preotu, Razvan"]
[WhiteFideId "5027373"]
[BlackFideId "2613280"]
[WhiteElo "2613"]
[BlackElo "2771"]
[Result "1-0"]
[Round "04"]
[TimeControl "180+1"]
[Date "2021.05.04"]
[WhiteClock "0:00:07"]
[BlackClock "0:00:04"]

1. e4 {[%clk 0:03:00]}  c5 {[%clk 0:02:52]} 2. c3 {[%clk 0:02:59]}  Nf6 {[%clk 0:02:50]} 3. e5 {[%clk 0:02:59]}  Nd5 {[%clk 0:02:50]} 4. d4 {[%clk 0:03:00]}  cxd4 {[%clk 0:02:48]} 5. cxd4 {[%clk 0:03:01]}  d6 {[%clk 0:02:46]} 6. Nf3 {[%clk 0:03:00]}  Nc6 {[%clk 0:02:43]} 7. Bc4 {[%clk 0:02:59]}  Nb6 {[%clk 0:02:35]} 8. Bb5 {[%clk 0:02:58]}  dxe5 {[%clk 0:02:20]} 9. Nxe5 {[%clk 0:02:59]}  Bd7 {[%clk 0:02:19]} 10. Nxd7 {[%clk 0:02:58]}  Qxd7 {[%clk 0:02:20]} 11. Nc3 {[%clk 0:02:59]}  e6 {[%clk 0:02:12]} 12. O-O {[%clk 0:02:44]}  a6 {[%clk 0:01:46]} 13. Bxc6 {[%clk 0:02:43]}  Qxc6 {[%clk 0:01:46]} 14. Be3 {[%clk 0:02:30]}  Bb4 {[%clk 0:01:43]} 15. d5 {[%clk 0:02:26]}  Nxd5 {[%clk 0:01:41]} 16. Nxd5 {[%clk 0:02:27]}  Qxd5 {[%clk 0:01:42]} 17. Qa4+ {[%clk 0:02:26]}  Qb5 {[%clk 0:01:42]} 18. Qxb5+ {[%clk 0:02:21]}  axb5 {[%clk 0:01:43]} 19. a3 {[%clk 0:02:20]}  Bd6 {[%clk 0:01:39]} 20. Rfd1 {[%clk 0:02:18]}  Ke7 {[%clk 0:01:39]} 21. Rd3 {[%clk 0:02:07]}  Rhc8 {[%clk 0:01:09]} 22. Rad1 {[%clk 0:02:03]}  Ra6 {[%clk 0:01:08]} 23. Rb3 {[%clk 0:01:59]}  b4 {[%clk 0:00:50]} 24. axb4 {[%clk 0:01:55]}  b5 {[%clk 0:00:16]} 25. g3 {[%clk 0:01:44]}  Rc4 {[%clk 0:00:15]} 26. Rbd3 {[%clk 0:01:41]}  Bxb4 {[%clk 0:00:10]} 27. Rd7+ {[%clk 0:01:41]}  Kf6 {[%clk 0:00:10]} 28. Rb7 {[%clk 0:01:36]}  Bc5 {[%clk 0:00:06]} 29. Bxc5 {[%clk 0:01:09]}  Rxc5 {[%clk 0:00:07]} 30. Rdd7 {[%clk 0:01:10]}  Ra2 {[%clk 0:00:07]} 31. Rxf7+ {[%clk 0:01:09]}  Ke5 {[%clk 0:00:08]} 32. b4 {[%clk 0:01:04]}  Rcc2 {[%clk 0:00:02]} 33. Rxb5+ {[%clk 0:01:04]}  Kd4 {[%clk 0:00:02]} 34. Rbb7 {[%clk 0:00:57]}  e5 {[%clk 0:00:02]} 35. Rbd7+ {[%clk 0:00:54]}  Ke4 {[%clk 0:00:02]} 36. Kg2 {[%clk 0:00:51]}  Rab2 {[%clk 0:00:02]} 37. h4 {[%clk 0:00:45]}  g6 {[%clk 0:00:01]} 38. Rb7 {[%clk 0:00:41]}  h6 {[%clk 0:00:02]} 39. b5 {[%clk 0:00:36]}  g5 {[%clk 0:00:03]} 40. h5 {[%clk 0:00:35]}  g4 {[%clk 0:00:02]} 41. Rb6 {[%clk 0:00:33]}  Rc1 {[%clk 0:00:02]} 42. Rg7 {[%clk 0:00:22]}  Rbb1 {[%clk 0:00:01]} 43. Rxg4+ {[%clk 0:00:22]}  Kf5 {[%clk 0:00:02]} 44. Rgg6 {[%clk 0:00:17]}  e4 {[%clk 0:00:02]} 45. Rbf6+ {[%clk 0:00:15]}  Ke5 {[%clk 0:00:03]} 46. Re6+ {[%clk 0:00:15]}  Kd5 {[%clk 0:00:03]} 47. Kh3 {[%clk 0:00:13]}  Rf1 {[%clk 0:00:01]} 48. Ref6 {[%clk 0:00:13]}  Ke5 {[%clk 0:00:02]} 49. Rxh6 {[%clk 0:00:12]}  e3 {[%clk 0:00:02]} 50. Re6+ {[%clk 0:00:11]}  Kf5 {[%clk 0:00:02]} 51. Rxe3 {[%clk 0:00:07]}  Rh1+ {[%clk 0:00:02]} 52. Kg2 {[%clk 0:00:07]}  Rxb5 {[%clk 0:00:03]} 53. Rf3+ {[%clk 0:00:07]}  Ke4 {[%clk 0:00:04]} 54. Rh8 {[%clk 0:00:07]}  Rg1+ {[%clk 0:00:03]} 55. Kxg1 {[%clk 0:00:06]}  Kxf3 {[%clk 0:00:04]} 56. Rf8+ {[%clk 0:00:06]}  Kg4 {[%clk 0:00:04]} 57. Rf4+ {[%clk 0:00:06]}  Kxh5 {[%clk 0:00:05]} 58. Kg2 {[%clk 0:00:07]}  Kg5 {[%clk 0:00:05]} 59. Rh4 {[%clk 0:00:08]}  Rb3 {[%clk 0:00:05]} 60. Rd4 {[%clk 0:00:08]}  Ra3 {[%clk 0:00:06]} 61. Rd5+ {[%clk 0:00:07]}  Kg6 {[%clk 0:00:06]} 62. f4 {[%clk 0:00:06]}  Rb3 {[%clk 0:00:06]} 63. Kh3 {[%clk 0:00:07]}  Ra3 {[%clk 0:00:05]} 64. Kg4 {[%clk 0:00:07]}  Kf6 {[%clk 0:00:05]} 65. Rd6+ {[%clk 0:00:07]}  Ke7 {[%clk 0:00:06]} 66. Rb6 {[%clk 0:00:08]}  Kf7 {[%clk 0:00:06]} 67. f5 {[%clk 0:00:07]}  Rc3 {[%clk 0:00:05]} 68. Kf4 {[%clk 0:00:07]}  Rc4+ {[%clk 0:00:05]} 69. Kg5 {[%clk 0:00:08]}  Rc7 {[%clk 0:00:06]} 70. g4 {[%clk 0:00:08]}  Ra7 {[%clk 0:00:06]} 71. Rh6 {[%clk 0:00:08]}  Kg7 {[%clk 0:00:05]} 72. f6+ {[%clk 0:00:09]}  Kg8 {[%clk 0:00:06]} 73. Rh3 {[%clk 0:00:06]}  Rb7 {[%clk 0:00:06]} 74. Re3 {[%clk 0:00:06]}  Ra7 {[%clk 0:00:06]} 75. Re8+ {[%clk 0:00:05]}  Kf7 {[%clk 0:00:06]} 76. Re7+ {[%clk 0:00:05]}  Rxe7 {[%clk 0:00:06]} 77. fxe7 {[%clk 0:00:06]}  Kxe7 {[%clk 0:00:07]} 78. Kh6 {[%clk 0:00:06]}  Kf8 {[%clk 0:00:04]} 79. g5 {[%clk 0:00:06]}  Kg8 {[%clk 0:00:04]} 80. Kg6 {[%clk 0:00:07]}  Kh8 {[%clk 0:00:04]} 81. Kf7 {[%clk 0:00:06]}  Kh7 {[%clk 0:00:04]} 82. g6+ {[%clk 0:00:07]} 1-0


[Site "https://www.chess.com"]

[Event "Titled Tuesday Blitz May 4 2021"]
[White "Garcia Blanco, Omar"]
[Black "Yeremyan, Alen"]
[WhiteFideId "2287153"]
[BlackFideId "13308998"]
[WhiteElo "2273"]
[BlackElo "2158"]
[Result "0-1"]
[Round "04"]
[TimeControl "180+1"]
[Date "2021.05.04"]
[WhiteClock "0:00:02"]
[BlackClock "0:00:21"]

1. e4 {[%clk 0:03:00]}  Nf6 {[%clk 0:02:59]} 2. e5 {[%clk 0:03:00]}  Nd5 {[%clk 0:03:00]} 3. d4 {[%clk 0:03:01]}  d6 {[%clk 0:03:00]} 4. exd6 {[%clk 0:03:01]}  cxd6 {[%clk 0:03:00]} 5. c4 {[%clk 0:03:02]}  Nb6 {[%clk 0:03:01]} 6. Nc3 {[%clk 0:03:02]}  g6 {[%clk 0:03:01]} 7. Be3 {[%clk 0:03:02]}  Bg7 {[%clk 0:03:02]} 8. Rc1 {[%clk 0:03:03]}  O-O {[%clk 0:03:03]} 9. b3 {[%clk 0:03:03]}  Bf5 {[%clk 0:03:03]} 10. Be2 {[%clk 0:03:03]}  d5 {[%clk 0:03:04]} 11. g4 {[%clk 0:02:57]}  Be6 {[%clk 0:03:03]} 12. c5 {[%clk 0:02:57]}  Nc8 {[%clk 0:03:03]} 13. h4 {[%clk 0:02:57]}  f5 {[%clk 0:03:02]} 14. Nh3 {[%clk 0:02:51]}  Kh8 {[%clk 0:02:54]} 15. Ng5 {[%clk 0:02:50]}  Bg8 {[%clk 0:02:51]} 16. h5 {[%clk 0:02:46]}  f4 {[%clk 0:02:52]} 17. h6 {[%clk 0:02:02]}  fxe3 {[%clk 0:02:44]} 18. hxg7+ {[%clk 0:02:02]}  Kxg7 {[%clk 0:02:45]} 19. fxe3 {[%clk 0:02:02]}  e5 {[%clk 0:02:41]} 20. Nf3 {[%clk 0:02:02]}  e4 {[%clk 0:02:38]} 21. Ne5 {[%clk 0:02:00]}  Nc6 {[%clk 0:02:38]} 22. Nxc6 {[%clk 0:02:00]}  bxc6 {[%clk 0:02:36]} 23. Kd2 {[%clk 0:01:59]}  Qg5 {[%clk 0:02:32]} 24. Qg1 {[%clk 0:01:58]}  Ne7 {[%clk 0:02:32]} 25. Qg3 {[%clk 0:01:54]}  Rae8 {[%clk 0:02:22]} 26. Qh2 {[%clk 0:01:20]}  Rf7 {[%clk 0:02:07]} 27. Rcf1 {[%clk 0:01:19]}  Ref8 {[%clk 0:02:07]} 28. Rxf7+ {[%clk 0:01:16]}  Rxf7 {[%clk 0:02:06]} 29. Nd1 {[%clk 0:01:12]}  h6 {[%clk 0:01:53]} 30. Nf2 {[%clk 0:01:09]}  Rf8 {[%clk 0:01:39]} 31. Nh3 {[%clk 0:01:07]}  Qh4 {[%clk 0:01:31]} 32. g5 {[%clk 0:01:05]}  Nf5 {[%clk 0:01:22]} 33. Qe5+ {[%clk 0:01:03]}  Kh7 {[%clk 0:01:17]} 34. gxh6 {[%clk 0:01:02]}  Rf7 {[%clk 0:00:57]} 35. Rh2 {[%clk 0:00:20]}  Re7 {[%clk 0:00:51]} 36. Qb8 {[%clk 0:00:16]}  a5 {[%clk 0:00:41]} 37. a4 {[%clk 0:00:16]}  Be6 {[%clk 0:00:35]} 38. Qf4 {[%clk 0:00:14]}  Qxf4 {[%clk 0:00:30]} 39. Nxf4 {[%clk 0:00:15]}  Nxh6 {[%clk 0:00:21]} 40. Bf1 {[%clk 0:00:11]}  Bf5 {[%clk 0:00:20]} 41. Bh3 {[%clk 0:00:11]}  Kg7 {[%clk 0:00:20]} 42. Bxf5 {[%clk 0:00:11]}  Nxf5 {[%clk 0:00:20]} 43. Rg2 {[%clk 0:00:10]}  Nh4 {[%clk 0:00:20]} 44. Rg4 {[%clk 0:00:09]}  Nf3+ {[%clk 0:00:21]} 45. Ke2 {[%clk 0:00:10]}  g5 {[%clk 0:00:22]} 46. Nh3 {[%clk 0:00:08]}  Kf6 {[%clk 0:00:22]} 47. Ng1 {[%clk 0:00:08]}  Kf5 {[%clk 0:00:22]} 48. Rg3 {[%clk 0:00:08]}  g4 {[%clk 0:00:22]} 49. Nxf3 {[%clk 0:00:05]}  exf3+ {[%clk 0:00:22]} 50. Kd3 {[%clk 0:00:02]}  Rb7 {[%clk 0:00:23]} 51. Kc3 {[%clk 0:00:02]}  f2 {[%clk 0:00:21]} 0-1


[Site "https://www.chess.com"]